bitfinex/quotes_BTCUSD_20250813
["timestamp","ask_amount","ask_price","bid_price","bid_amount"]
[1755101841861,0.00064679,121490.0,121480.0,3.82405405]
[1755101842668,0.00064679,121490.0,121480.0,3.72149405]
[1755101842883,0.00064679,121490.0,121480.0,3.61893405]
[1755101843084,0.00064679,121490.0,121480.0,3.63899099]
[1755101844576,0.00064679,121490.0,121480.0,3.71109869]
[1755101844741,0.00064679,121490.0,121480.0,3.44175099]
[1755101844986,0.00064679,121490.0,121480.0,3.76880623]
[1755101845194,0.00064679,121490.0,121480.0,3.89756623]
[1755101845407,0.00064679,121490.0,121480.0,3.44159099]
[1755101846654,0.0032,121520.0,121510.0,0.0658382]
[1755101846859,0.0032,121520.0,121510.0,2.57016702]
[1755101847059,0.00821,121520.0,121510.0,2.58893126]
[1755101847788,0.00821,121520.0,121510.0,2.93025971]
[1755101848018,0.00821,121520.0,121510.0,2.91711771]
[1755101848234,0.00821,121520.0,121510.0,2.42044647]
[1755101848459,0.00821,121520.0,121510.0,2.87642171]
[1755101848657,0.00821,121520.0,121510.0,2.76434447]
[1755101848895,0.00821,121520.0,121510.0,2.59172625]
[1755101849077,0.00821,121520.0,121510.0,2.72052625]
[1755101849273,0.00821,121520.0,121510.0,2.72136625]
[1755101849479,0.00821,121520.0,121510.0,2.26539101]
[1755101849685,0.00821,121520.0,121510.0,1.8961513]
[1755101849881,0.00821,121520.0,121510.0,2.0251913]
[1755101850304,0.00821,121520.0,121510.0,1.95310089]
[1755101850500,0.00821,121520.0,121510.0,1.82406089]
[1755101850738,0.00821,121520.0,121510.0,1.93905289]
[1755101850942,0.00821,121520.0,121510.0,1.50775043]
[1755101851111,0.00821,121520.0,121510.0,1.96372567]
[1755101851312,0.00821,121520.0,121510.0,1.50775043]
[1755101851517,0.00626,121520.0,121510.0,2.44960892]
[1755101851716,0.00626,121520.0,121510.0,2.41500258]
[1755101851925,0.00626,121520.0,121510.0,2.17631037]
[1755101852129,0.00822,121520.0,121510.0,2.07379037]
[1755101852314,0.0032,121520.0,121510.0,2.00651037]
[1755101852945,0.0032,121520.0,121510.0,1.56495966]
[1755101853167,0.0032,121520.0,121510.0,2.0209349]
[1755101854383,0.0032,121520.0,121510.0,1.77945933]
[1755101854598,0.0032,121520.0,121510.0,1.70736892]
[1755101855001,0.00811,121520.0,121510.0,1.57664892]
[1755101855208,0.00811,121520.0,121510.0,1.70644892]
[1755101855861,0.00811,121520.0,121510.0,1.57664892]
[1755101856083,0.00811,121520.0,121510.0,1.45543589]
[1755101856217,0.00811,121520.0,121510.0,1.58519589]
[1755101856418,0.00811,121520.0,121510.0,1.45543589]
[1755101856634,0.00811,121520.0,121510.0,1.58515589]
[1755101857236,0.00811,121520.0,121510.0,1.58599589]
[1755101857640,0.0032,121520.0,121510.0,1.66871914]
[1755101857850,0.0032,121520.0,121510.0,1.66863914]
[1755101858430,0.0032,121520.0,121510.0,1.74072955]
[1755101858634,0.0032,121520.0,121510.0,1.61108955]
[1755101858838,0.0032,121520.0,121510.0,1.74068955]
[1755101860129,0.0032,121520.0,121510.0,2.08068955]
[1755101860536,0.0032,121520.0,121510.0,1.62471431]
[1755101860742,0.0032,121520.0,121510.0,2.08068955]
[1755101861419,0.0032,121520.0,121510.0,2.08060955]
[1755101861621,0.00615,121520.0,121510.0,2.38028955]
[1755101861908,0.0023615,121520.0,121510.0,2.30735914]
[1755101862099,0.0023615,121520.0,121510.0,2.20479914]
[1755101862495,0.0184358,121550.0,121520.0,0.0493716]
[1755101862699,0.00196,121530.0,121520.0,1.47479147]
[1755101862861,0.00196,121530.0,121520.0,2.05814944]
[1755101863276,0.00196,121530.0,121520.0,1.94503966]
[1755101863505,0.0184358,121550.0,121530.0,0.04937046]
[1755101863691,0.00196,121540.0,121530.0,0.04937046]
[1755101863897,0.00491,121540.0,121530.0,0.6347457]
[1755101864316,0.00491,121540.0,121530.0,0.17877052]
[1755101864538,0.00491,121540.0,121530.0,0.58537524]
[1755101864986,0.00491,121540.0,121530.0,0.45597524]
[1755101865198,0.00491,121540.0,121530.0,0.58533524]
[1755101865631,0.00491,121540.0,121530.0,0.12936]
[1755101865840,0.00491,121540.0,121530.0,0.58533524]
[1755101867028,0.00491,121540.0,121530.0,0.45597524]
[1755101867247,0.00491,121540.0,121530.0,0.58525524]
[1755101867465,0.00491,121540.0,121530.0,0.45597524]
[1755101867677,0.00491,121540.0,121530.0,0.58525524]
[1755101868746,0.00491,121540.0,121530.0,0.58521524]
[1755101868959,0.00491,121540.0,121530.0,0.12924]
[1755101869178,0.00491,121540.0,121530.0,0.58521524]
[1755101869453,0.00491,121540.0,121530.0,0.45597524]
[1755101869671,0.00491,121540.0,121530.0,0.1292]
[1755101870065,0.00491,121540.0,121520.0,0.1257653]
[1755101870268,0.05743,121540.0,121530.0,0.62916]
[1755101870594,0.08468325,121540.0,121520.0,0.1257653]
[1755101870872,0.08468325,121540.0,121530.0,0.12916]
[1755101871079,0.08468325,121540.0,121520.0,0.1257653]
[1755101871080,0.14015325,121540.0,121520.0,0.1257653]
[1755101871297,0.14015325,121540.0,121530.0,0.12916]
[1755101871502,0.14015325,121540.0,121530.0,0.4288]
[1755101871677,0.14015325,121540.0,121530.0,0.29964]
[1755101871996,0.03415867,121540.0,121530.0,0.50109201]
[1755101872205,0.03415867,121540.0,121530.0,0.42876]
[1755101874328,0.03415867,121540.0,121530.0,0.39857201]
[1755101875377,0.03415867,121540.0,121530.0,0.26945201]
[1755101875593,0.03415867,121540.0,121530.0,0.39857201]
[1755101877982,0.00491,121540.0,121530.0,0.07233201]
[1755101878186,0.59907849,121540.0,121530.0,0.20133201]
[1755101878443,0.66332992,121540.0,121530.0,0.129]
[1755101878658,0.66332992,121540.0,121520.0,0.07233201]
[1755101878897,0.54164849,121530.0,121520.0,0.07233201]
[1755101879097,0.59907849,121530.0,121520.0,0.20129201]
[1755101879326,0.14310325,121530.0,121520.0,0.12896]
[1755101879464,0.59907849,121530.0,121520.0,0.18694797]
[1755101879648,0.71398634,121530.0,121520.0,0.05798797]
[1755101879863,0.71398634,121530.0,121520.0,0.18718797]
[1755101880068,0.73864734,121530.0,121520.0,0.18718797]
[1755101880284,1.09609636,121530.0,121520.0,0.05798797]
[1755101880519,0.05,121520.0,121510.0,0.05847642]
[1755101880747,1.20342718,121520.0,121510.0,0.00048845]
[1755101880999,0.05,121500.0,121490.0,0.06098797]
[1755101881218,0.05,121490.0,121480.0,0.05773797]
[1755101881482,0.025,121470.0,121460.0,0.003]
[1755101881731,0.57674319,121470.0,121460.0,0.43284891]
[1755101881937,0.57831319,121470.0,121460.0,0.43284891]
[1755101882380,0.11139325,121470.0,121460.0,0.20064891]
[1755101882782,0.56736849,121470.0,121460.0,0.33028891]
[1755101883820,0.11139325,121470.0,121460.0,0.33028891]
[1755101884027,0.09719821,121470.0,121460.0,0.33028891]
[1755101884237,0.11139325,121470.0,121460.0,0.33028891]
[1755101884444,0.11139325,121470.0,121460.0,0.00348891]
[1755101884862,0.10982325,121470.0,121460.0,0.13312891]
[1755101885709,0.08482325,121470.0,121460.0,0.00348891]
[1755101885926,0.10982325,121470.0,121460.0,0.00348891]
[1755101886158,0.13532258,121470.0,121460.0,0.00552891]
[1755101886368,0.16032258,121470.0,121460.0,0.13520891]
[1755101886577,0.59286782,121470.0,121460.0,0.13316891]
[1755101886798,0.61786782,121470.0,121460.0,0.13316891]
[1755101887007,0.16189258,121470.0,121460.0,0.13316891]
[1755101887694,0.14239258,121470.0,121460.0,0.13316891]
[1755101888107,0.09189325,121470.0,121460.0,0.13316891]
[1755101888323,0.09032325,121470.0,121460.0,0.13316891]
[1755101888528,0.09032325,121470.0,121460.0,0.13520891]
[1755101888735,0.06322325,121470.0,121460.0,0.46463415]
[1755101889006,0.36812,121490.0,121460.0,0.46463415]
[1755101889223,0.10772325,121480.0,121460.0,0.46463415]
[1755101889459,0.10772325,121480.0,121470.0,0.12972]
[1755101889671,0.08327325,121480.0,121470.0,0.12972]
[1755101890144,0.13239225,121480.0,121470.0,0.13489]
[1755101890372,0.08272325,121480.0,121470.0,0.00517]
[1755101890607,0.0657239,121490.0,121470.0,0.46114524]
[1755101890826,0.13239025,121490.0,121470.0,0.59078524]
[1755101891054,0.13239025,121490.0,121470.0,0.13481]
[1755101891263,0.12648595,121490.0,121470.0,0.13481]
[1755101891477,0.12681895,121490.0,121480.0,0.2998]
[1755101891676,0.15203595,121490.0,121480.0,0.2998]
[1755101892089,0.15203595,121490.0,121480.0,0.42936]
[1755101892298,0.15513595,121490.0,121480.0,0.2998]
[1755101892537,0.15513595,121490.0,121480.0,0.42936]
[1755101892750,0.15513595,121490.0,121480.0,0.19724]
[1755101892973,0.10236895,121490.0,121480.0,0.3268]
[1755101893181,0.11137325,121490.0,121480.0,0.19724]
[1755101893387,0.11137325,121490.0,121480.0,0.12952]
[1755101893656,0.10827325,121490.0,121480.0,0.12952]
[1755101894091,0.08272325,121490.0,121480.0,0.13469]
[1755101894309,0.10772325,121490.0,121480.0,0.13469]
[1755101894524,0.049666,121500.0,121480.0,0.46114524]
[1755101894950,0.049666,121500.0,121490.0,0.12948]
[1755101895162,0.02555,121500.0,121490.0,0.12948]
[1755101895822,0.00055,121500.0,121490.0,0.13152]
[1755101896037,0.049663,121510.0,121490.0,0.13465]
[1755101896253,0.13238625,121510.0,121490.0,0.59062524]
[1755101896466,0.13238625,121510.0,121490.0,0.13465]
[1755101896899,0.13238625,121510.0,121490.0,0.59062524]
[1755101897115,0.13238625,121510.0,121490.0,0.47232353]
[1755101897326,0.10738625,121510.0,121500.0,0.58850524]
[1755101897537,0.028,121520.0,121500.0,0.46114524]
[1755101897747,0.11072325,121520.0,121500.0,0.13457]
[1755101897963,0.17375255,121520.0,121500.0,0.13457]
[1755101898186,0.17375255,121520.0,121500.0,0.00517]
[1755101898397,0.17375255,121520.0,121510.0,0.00313]
[1755101898398,0.003,121520.0,121510.0,0.00313]
[1755101898606,0.003,121520.0,121510.0,0.13453]
[1755101899704,0.028,121520.0,121510.0,0.13453]
[1755101900135,0.003,121520.0,121510.0,0.13453]
[1755101900779,0.003,121520.0,121510.0,0.00517]
[1755101900987,0.003,121520.0,121510.0,0.46114524]
[1755101901244,0.003,121520.0,121510.0,0.59038524]
[1755101901652,0.003,121520.0,121510.0,0.89018524]
[1755101902491,0.003,121520.0,121510.0,0.78762524]
[1755101902677,0.003,121520.0,121510.0,0.33165]
[1755101902880,0.003,121520.0,121510.0,0.78758524]
[1755101903088,0.003,121520.0,121510.0,0.46114524]
[1755101903331,0.003,121520.0,121510.0,0.59034524]
[1755101903478,0.003,121520.0,121510.0,0.46114524]
[1755101903695,0.003,121520.0,121510.0,0.59030524]
[1755101903894,0.003,121520.0,121510.0,0.46114524]
[1755101904101,0.003,121520.0,121510.0,0.59026524]
[1755101904278,0.003,121520.0,121510.0,0.46114524]
[1755101904495,0.003,121520.0,121510.0,0.59026524]
[1755101904950,0.003,121520.0,121510.0,0.13425]
[1755101905193,0.003,121520.0,121510.0,0.59022524]
[1755101905425,0.003,121520.0,121510.0,0.46114524]
[1755101905650,0.003,121520.0,121510.0,0.59022524]
[1755101905906,0.003,121520.0,121510.0,0.46114524]
[1755101906137,0.003,121520.0,121510.0,0.59018524]
[1755101906773,0.003,121520.0,121510.0,0.80114524]
[1755101906981,0.003,121520.0,121510.0,0.93014524]
[1755101908450,0.003,121520.0,121510.0,1.19989249]
[1755101908652,0.003,121520.0,121510.0,1.24927114]
[1755101909738,0.003,121520.0,121510.0,1.12027114]
[1755101909938,0.003,121520.0,121510.0,1.24923114]
[1755101910170,0.003,121520.0,121510.0,1.5936954]
[1755101910378,0.003,121520.0,121510.0,1.7226154]
[1755101911601,0.003,121520.0,121510.0,2.1248554]
[1755101912126,0.003,121520.0,121510.0,2.0223354]
[1755101912527,0.003,121520.0,121510.0,1.9198154]
[1755101913181,0.003,121520.0,121510.0,1.92810828]
[1755101913352,0.003,121520.0,121510.0,1.73090828]
[1755101914977,0.003,121520.0,121510.0,1.80310459]
[1755101915178,0.003,121520.0,121510.0,1.73090828]
[1755101916127,0.003,121520.0,121510.0,1.80310459]
[1755101916395,0.003,121520.0,121510.0,1.73090828]
[1755101916560,0.003,121520.0,121510.0,1.80310459]
[1755101917160,0.003,121520.0,121510.0,1.73090828]
[1755101917360,0.003,121520.0,121510.0,0.8189578]
[1755101917570,0.003,121520.0,121510.0,1.73090828]
[1755101917965,0.003,121520.0,121510.0,1.80310459]
[1755101918411,0.003,121520.0,121510.0,1.67418459]
[1755101918616,0.003,121520.0,121510.0,1.80274459]
[1755101919223,0.003,121520.0,121510.0,1.67418459]
[1755101919379,0.003,121520.0,121510.0,1.80274459]
[1755101920855,0.003,121520.0,121510.0,1.65054361]
[1755101921066,0.003,121520.0,121510.0,1.38749828]
[1755101921550,0.003,121520.0,121510.0,1.78969828]
[1755101921748,0.003,121520.0,121510.0,1.55861828]
[1755101921951,0.003,121520.0,121510.0,1.68701828]
[1755101922163,0.003,121520.0,121510.0,1.598292]
[1755101922364,0.003,121520.0,121510.0,1.495772]
[1755101922577,0.003,121520.0,121510.0,1.298612]
[1755101923073,0.003,121520.0,121510.0,1.513412]
[1755101923273,0.003,121520.0,121510.0,1.641772]
[1755101923493,0.003,121520.0,121510.0,1.663177]
[1755101925740,0.003,121520.0,121510.0,1.534817]
[1755101925943,0.003,121520.0,121510.0,1.663097]
[1755101927734,0.003,121520.0,121510.0,1.534817]
[1755101928209,0.003,121520.0,121510.0,1.65472412]
[1755101928765,0.003,121520.0,121510.0,1.54992361]
[1755101928957,0.003,121520.0,121510.0,1.67808361]
[1755101929155,0.003,121520.0,121510.0,1.54992361]
[1755101929366,0.00507,121520.0,121510.0,1.65743459]
[1755101929563,0.00804,121520.0,121510.0,1.52927459]
[1755101929783,0.00804,121520.0,121510.0,1.54672361]
[1755101929983,0.00507,121520.0,121510.0,1.67484361]
[1755101930184,0.00507,121520.0,121510.0,1.65144412]
[1755101930580,0.00507,121520.0,121510.0,1.72364043]
[1755101930813,0.003,121520.0,121510.0,1.59552043]
[1755101930986,0.003,121520.0,121510.0,1.72364043]
[1755101931492,0.003,121520.0,121510.0,2.14911992]
[1755101931734,0.003,121520.0,121510.0,1.92171992]
[1755101932086,0.003,121520.0,121510.0,2.04995992]
[1755101932291,0.00058227,121520.0,121510.0,1.97776361]
[1755101932504,0.00058227,121520.0,121510.0,2.0789696]
[1755101933125,0.00058227,121520.0,121510.0,1.16701912]
[1755101933305,0.00058227,121520.0,121510.0,2.0789696]
[1755101933741,0.00058227,121520.0,121510.0,1.7793696]
[1755101934068,0.00058227,121520.0,121510.0,1.7797296]
[1755101934507,0.00058227,121520.0,121510.0,1.67852361]
[1755101935165,0.00058227,121520.0,121510.0,1.54992361]
[1755101935601,0.00058227,121520.0,121510.0,1.67904361]
[1755101936267,0.00011337,121520.0,121510.0,1.67904361]
[1755101936481,0.00011337,121520.0,121510.0,0.76721313]
[1755101936704,0.00011337,121520.0,121510.0,1.67916361]
[1755101936919,0.00011337,121520.0,121510.0,1.58086589]
[1755101937130,0.00011337,121520.0,121510.0,6.33949589]
[1755101937355,0.00011337,121520.0,121510.0,6.21025589]
[1755101937573,0.00218337,121520.0,121510.0,6.1401234]
[1755101937788,0.00218337,121520.0,121510.0,6.0108834]
[1755101937789,0.00515337,121520.0,121510.0,6.0108834]
[1755101938218,0.00515337,121520.0,121510.0,6.1406434]
[1755101938649,0.00515337,121520.0,121510.0,6.0108834]
[1755101938873,0.00515337,121520.0,121510.0,1.4118709]
[1755101939097,0.00515337,121520.0,121510.0,2.42237338]
[1755101939580,0.00515337,121520.0,121510.0,2.47325283]
[1755101939797,0.00515337,121520.0,121510.0,2.25617883]
[1755101940010,0.00515337,121520.0,121510.0,2.13542583]
[1755101940404,0.00515337,121520.0,121510.0,2.00570583]
[1755101940686,0.00515337,121520.0,121510.0,2.13706583]
[1755101940890,0.00515337,121520.0,121510.0,2.43230891]
[1755101941308,0.00515337,121520.0,121510.0,2.27342138]
[1755101941515,0.00515337,121520.0,121510.0,2.80686138]
[1755101941929,0.00515337,121520.0,121510.0,2.70450138]
[1755101942137,0.00515337,121520.0,121510.0,1.07581849]
[1755101942351,0.00299378,121520.0,121510.0,1.53083714]
[1755101942557,0.00299378,121520.0,121510.0,1.65825238]
[1755101942763,0.00299378,121520.0,121510.0,1.78973238]
[1755101942969,0.00299378,121520.0,121510.0,1.68577991]
[1755101943147,0.00299378,121520.0,121510.0,1.81729991]
[1755101943398,0.00199,121520.0,121510.0,1.81943991]
[1755101944243,0.00199,121520.0,121510.0,1.81729991]
[1755101944451,0.00506,121520.0,121510.0,1.81729991]
[1755101944654,0.00506,121520.0,121510.0,1.65825238]
[1755101944797,0.00506,121520.0,121510.0,1.78969238]
[1755101945009,0.00506,121520.0,121510.0,1.60887373]
[1755101945182,0.00506,121520.0,121510.0,0.91633924]
[1755101945383,0.00506,121520.0,121510.0,1.05811024]
[1755101945829,0.00506,121520.0,121510.0,0.92741524]
[1755101946182,0.00506,121520.0,121500.0,0.10157004]
[1755101946183,0.05972,121520.0,121500.0,0.10157004]
[1755101946366,0.00199,121520.0,121510.0,0.20396103]
[1755101946784,0.00199,121520.0,121510.0,0.10108113]
[1755101947040,0.05972,121520.0,121510.0,0.10108113]
[1755101947250,0.05972,121520.0,121510.0,0.1316]
[1755101947457,0.05972,121520.0,121510.0,0.58757524]
[1755101948281,0.05972,121520.0,121510.0,0.1316]
[1755101948496,0.05972,121520.0,121510.0,0.58757524]
[1755101948705,0.05972,121520.0,121510.0,0.1316]
[1755101949114,0.05972,121520.0,121510.0,0.58757524]
[1755101949531,0.05972,121520.0,121510.0,0.1316]
[1755101949730,0.05972,121520.0,121510.0,0.58757524]
[1755101951719,0.05972,121520.0,121510.0,0.88725524]
[1755101952530,0.05972,121520.0,121510.0,0.50380975]
[1755101952731,0.05972,121520.0,121510.0,0.95978499]
[1755101953358,0.05972,121520.0,121510.0,0.88725524]
[1755101953564,0.05972,121520.0,121510.0,0.43128]
[1755101953783,0.05972,121520.0,121510.0,0.75565524]
[1755101953998,0.05972,121520.0,121510.0,0.78465524]
[1755101954490,0.05972,121520.0,121510.0,0.85718499]
[1755101954699,0.05972,121520.0,121510.0,0.32868]
[1755101954902,0.05972,121520.0,121510.0,0.78465524]
[1755101955347,0.05972,121520.0,121510.0,0.26968975]
[1755101955592,0.05972,121520.0,121510.0,0.52850499]
[1755101955758,0.00506,121520.0,121510.0,0.66018499]
[1755101955996,0.00506,121520.0,121510.0,0.66054499]
[1755101956199,0.00506,121520.0,121510.0,0.20456975]
[1755101956400,0.00506,121520.0,121510.0,0.66058499]
[1755101956580,0.00506,121520.0,121510.0,0.52850499]
[1755101956757,0.00506,121520.0,121510.0,0.20460975]
[1755101956962,0.00506,121520.0,121510.0,0.66054499]
[1755101957960,0.00506,121520.0,121510.0,0.52850499]
[1755101958174,0.00506,121520.0,121510.0,0.20456975]
[1755101958433,0.00506,121520.0,121510.0,0.66054499]
[1755101958637,0.00506,121520.0,121510.0,0.66058499]
[1755101959503,0.00199,121520.0,121510.0,0.66058499]
[1755101959717,0.00199,121520.0,121510.0,0.66272499]
[1755101959916,0.00199,121520.0,121510.0,0.66058499]
[1755101959917,0.00506,121520.0,121510.0,0.66058499]
[1755101960948,0.00506,121520.0,121510.0,0.20460975]
[1755101961195,0.00506,121520.0,121510.0,0.66058499]
[1755101961582,0.00506,121520.0,121510.0,0.96026499]
[1755101961832,0.00506,121520.0,121510.0,0.96038499]
[1755101962263,0.00506,121520.0,121510.0,0.50440975]
[1755101962393,0.00506,121520.0,121510.0,0.96038499]
[1755101962599,0.00199,121520.0,121510.0,0.96038499]
[1755101962799,0.00199,121520.0,121510.0,0.50440975]
[1755101963056,0.00199,121520.0,121510.0,0.96038499]
[1755101963254,0.00199,121520.0,121510.0,0.72780499]
[1755101963454,0.00199,121520.0,121510.0,0.86000499]
[1755101963614,0.00199,121520.0,121510.0,0.85988499]
[1755101964233,0.00506,121520.0,121510.0,0.85774499]
[1755101964439,0.00506,121520.0,121510.0,0.72566499]
[1755101964654,0.00506,121520.0,121510.0,0.85766499]
[1755101964866,0.00506,121520.0,121510.0,0.07252975]
[1755101965072,0.00506,121520.0,121510.0,0.20452975]
[1755101965522,0.00506,121520.0,121510.0,0.20448975]
[1755101965727,0.00506,121520.0,121510.0,0.20472975]
[1755101965958,0.00506,121520.0,121510.0,0.66070499]
[1755101966164,0.00506,121520.0,121510.0,0.52850499]
[1755101966366,0.00199,121520.0,121510.0,0.66070499]
[1755101966570,0.00199,121520.0,121510.0,0.20686975]
[1755101966815,0.00199,121520.0,121510.0,0.66284499]
[1755101967025,0.00307,121540.0,121510.0,0.68288465]
[1755101967262,0.08272325,121530.0,121520.0,0.45597524]
[1755101967468,0.08471325,121530.0,121510.0,0.09260941]
[1755101967674,0.08778325,121530.0,121520.0,0.13216]
[1755101967905,0.08778325,121530.0,121510.0,0.07252975]
[1755101968122,0.64972434,121530.0,121510.0,0.07252975]
[1755101968325,0.05466,121520.0,121510.0,0.07252975]
[1755101968531,0.13937325,121520.0,121510.0,0.20460975]
[1755101968738,0.13937325,121520.0,121510.0,0.07252975]
[1755101968739,0.14244325,121520.0,121510.0,0.07252975]
[1755101969355,0.16710425,121520.0,121510.0,0.20472975]
[1755101969562,0.2319122,121520.0,121510.0,0.20472975]
[1755101969821,0.68788744,121520.0,121510.0,0.20464975]
[1755101970024,0.68788744,121520.0,121510.0,0.13212]
[1755101970434,0.2319122,121520.0,121510.0,0.13212]
[1755101970651,0.16710425,121520.0,121500.0,0.07301866]
[1755101970874,0.081311,121520.0,121510.0,0.13212]
[1755101971212,0.62000949,121520.0,121510.0,0.05803762]
[1755101971418,0.62303949,121520.0,121510.0,0.35775762]
[1755101971618,0.16706425,121520.0,121510.0,0.43188]
[1755101971824,0.2343682,121520.0,121510.0,0.43208]
[1755101972024,0.2343682,121520.0,121510.0,0.29972]
[1755101972238,0.62303949,121520.0,121510.0,0.1972]
[1755101972649,0.62303949,121520.0,121510.0,0.13232]
[1755101973059,0.16706425,121520.0,121510.0,0.13232]
[1755101973425,0.62303949,121520.0,121510.0,0.13228]
[1755101973619,0.16706425,121520.0,121510.0,0.13228]
[1755101973848,0.64474592,121520.0,121510.0,0.13228]
[1755101974259,0.18877068,121520.0,121510.0,0.13228]
[1755101974577,0.64474592,121520.0,121510.0,0.13228]
[1755101974983,0.18877068,121520.0,121510.0,0.13228]
[1755101975192,0.64474592,121520.0,121500.0,0.07301866]
[1755101975398,0.08575325,121510.0,121500.0,0.00048891]
[1755101975605,0.08781325,121510.0,121500.0,0.13260891]
[1755101975816,0.08781325,121510.0,121500.0,0.00048891]
[1755101976032,0.08781325,121510.0,121500.0,0.20525456]
[1755101976857,0.08781325,121510.0,121500.0,0.07313456]
[1755101977061,0.08781325,121510.0,121500.0,0.20521456]
[1755101978087,0.11247525,121510.0,121500.0,0.20521456]
[1755101979845,0.17695694,121510.0,121500.0,0.20521456]
[1755101980276,0.024662,121510.0,121500.0,0.5343998]
[1755101980442,0.2663,121520.0,121500.0,0.59355415]
[1755101980642,0.34902325,121520.0,121510.0,0.07271027]
[1755101980855,0.35108325,121520.0,121510.0,0.07482027]
[1755101981001,0.34902325,121520.0,121510.0,0.20976027]
[1755101981597,0.34902325,121520.0,121510.0,0.50415027]
[1755101981598,0.35411325,121520.0,121510.0,0.50415027]
[1755101982016,0.43659768,121520.0,121510.0,0.50415027]
[1755101982225,0.43659768,121520.0,121510.0,0.37243027]
[1755101982401,0.43659768,121520.0,121510.0,0.43144]
[1755101983140,0.43659768,121520.0,121510.0,0.32896]
[1755101983351,0.43659768,121520.0,121510.0,0.38714379]
[1755101983560,0.89257292,121520.0,121510.0,0.18990379]
[1755101983772,0.43659768,121520.0,121510.0,0.18990379]
[1755101984982,0.43659768,121520.0,121510.0,0.05818379]
[1755101985188,0.43659768,121520.0,121510.0,0.18986379]
[1755101986435,0.43659768,121520.0,121510.0,0.05818379]
[1755101986641,0.43659768,121520.0,121510.0,0.18986379]
[1755101986987,0.89257292,121520.0,121510.0,0.18986379]
[1755101987203,0.89257292,121520.0,121510.0,0.05818379]
[1755101987416,0.89257292,121520.0,121510.0,0.18978379]
[1755101987666,0.89257292,121520.0,121510.0,0.05818379]
[1755101987889,0.89257292,121520.0,121510.0,0.18970379]
[1755101988100,0.89257292,121520.0,121510.0,0.05818379]
[1755101988315,0.74895194,121520.0,121510.0,0.05818379]
[1755101988539,1.81122718,121520.0,121510.0,0.05818379]
[1755101988743,1.54492718,121520.0,121510.0,0.13148]
[1755101988960,0.39,121510.0,121500.0,0.00048891]
[1755101989170,1.07150292,121510.0,121500.0,0.13196891]
[1755101989794,1.09616992,121510.0,121500.0,0.00048891]
[1755101990018,0.55996468,121510.0,121500.0,0.13192891]
[1755101990232,1.05838894,121510.0,121500.0,0.13192891]
[1755101990432,1.05838894,121510.0,121500.0,0.00048891]
[1755101990673,1.05838894,121510.0,121500.0,0.13188891]
[1755101990882,1.11361894,121510.0,121500.0,0.13188891]
[1755101991136,1.11361894,121510.0,121500.0,0.13184891]
[1755101991568,1.11361894,121510.0,121500.0,0.43160891]
[1755101991750,0.6576437,121510.0,121500.0,0.43160891]
[1755101991971,1.11361894,121510.0,121500.0,0.30024891]
[1755101992209,1.11361894,121510.0,121500.0,0.43160891]
[1755101992478,1.11361894,121510.0,121500.0,0.43168891]
[1755101992698,1.11361894,121510.0,121500.0,0.30024891]
[1755101993351,0.6576437,121510.0,121500.0,0.43164891]
[1755101993474,1.11361894,121510.0,121500.0,0.43164891]
[1755101994329,1.11361894,121510.0,121500.0,0.30024891]
[1755101994534,1.11361894,121510.0,121500.0,0.43160891]
[1755101996055,1.11361894,121510.0,121500.0,0.30024891]
[1755101996275,0.6576437,121510.0,121500.0,0.43148891]
[1755101996503,1.11361894,121510.0,121500.0,0.43148891]
[1755101996665,1.11361894,121510.0,121500.0,0.30024891]
[1755101996876,1.11361894,121510.0,121500.0,0.43148891]
[1755101997286,1.11345435,121510.0,121500.0,0.43148891]
[1755101997696,1.11345435,121510.0,121500.0,0.30024891]
[1755101998023,1.11345435,121510.0,121500.0,0.43144891]
[1755101999550,1.11345435,121510.0,121500.0,0.43140891]
[1755101999762,1.11345435,121510.0,121500.0,0.43136891]
[1755102000280,1.11345435,121510.0,121500.0,0.30024891]
[1755102000487,0.59921911,121510.0,121500.0,0.30235891]
[1755102000695,0.55471009,121510.0,121500.0,0.43645891]
[1755102000899,0.9532009,121510.0,121500.0,0.43645891]
[1755102001072,0.94564992,121510.0,121500.0,0.43645891]
[1755102001256,0.94564992,121510.0,121500.0,0.43641891]
[1755102001462,0.10739025,121510.0,121500.0,0.30529891]
[1755102001850,0.08272325,121510.0,121500.0,0.30529891]
[1755102002069,0.08272325,121510.0,121500.0,0.20273891]
[1755102002653,0.08272325,121510.0,121500.0,0.33381891]
[1755102002869,0.08272325,121510.0,121500.0,0.13661891]
[1755102004556,0.08272325,121510.0,121500.0,0.46151415]
[1755102004754,0.08272325,121510.0,121500.0,0.13649891]
[1755102005578,0.2663,121520.0,121500.0,0.59247415]
[1755102005779,0.34902325,121520.0,121510.0,0.00294]
[1755102006015,0.34902325,121520.0,121510.0,0.13597]
[1755102006204,0.4295231,121520.0,121510.0,0.13597]
[1755102006716,0.4315431,121520.0,121510.0,0.13597]
[1755102006884,0.4295231,121520.0,121510.0,0.13597]
[1755102010124,0.34902325,121520.0,121510.0,0.13597]
[1755102010763,0.34902325,121520.0,121510.0,0.00505]
[1755102010972,0.34902325,121520.0,121510.0,0.13597]
[1755102011422,0.34902325,121520.0,121510.0,0.00505]
[1755102011630,0.34902325,121520.0,121510.0,0.43585]
[1755102011836,0.34902325,121520.0,121510.0,0.30485]
[1755102012038,0.34902325,121520.0,121510.0,0.43581]
[1755102012243,0.34902325,121520.0,121510.0,0.43577]
[1755102012647,0.34902325,121520.0,121510.0,0.33321]
[1755102013084,0.34882497,121520.0,121510.0,0.59194524]
[1755102013290,0.34882497,121520.0,121510.0,0.46102524]
[1755102013483,0.34882497,121520.0,121510.0,0.13593]
[1755102013631,0.34882497,121520.0,121510.0,0.59190524]
[1755102015078,0.34882497,121520.0,121510.0,0.13593]
[1755102015283,0.34882497,121520.0,121510.0,0.59190524]
[1755102015498,0.29076072,121540.0,121510.0,0.61523515]
[1755102015733,0.08272325,121530.0,121520.0,0.45891524]
[1755102015937,0.08272325,121530.0,121520.0,0.46102524]
[1755102016229,0.08272325,121530.0,121520.0,0.59182524]
[1755102016873,0.08272325,121530.0,121520.0,0.13585]
[1755102017081,0.08272325,121530.0,121520.0,0.59182524]
[1755102018058,0.08272325,121530.0,121520.0,0.13585]
[1755102018262,0.08272325,121530.0,121520.0,0.59182524]
[1755102018420,0.08272325,121530.0,121520.0,0.13585]
[1755102018616,0.08272325,121530.0,121520.0,0.59178524]
[1755102018845,0.08272325,121530.0,121520.0,0.46102524]